bitfinex/quotes_ETHUSD_20250930
["timestamp","ask_amount","ask_price","bid_price","bid_amount"]
[1759263918627,0.001,4170.2,4170.1,40.575615]
[1759263918840,0.001,4170.2,4170.1,40.26342788]
[1759263919001,0.001,4170.2,4170.1,38.19752788]
[1759263919201,0.001,4170.2,4170.1,34.05356288]
[1759263919406,0.001,4170.2,4170.1,32.75680988]
[1759263919607,0.001,4170.2,4170.1,36.82462088]
[1759263919804,0.001,4170.2,4170.1,30.04192188]
[1759263920007,0.001,4170.2,4170.1,29.30812188]
[1759263920227,0.001,4170.2,4170.1,7.23034938]
[1759263920436,0.001,4170.2,4170.1,9.22134938]
[1759263921212,0.001,4170.2,4170.1,8.74734938]
[1759263921514,0.001,4170.2,4170.1,9.22134938]
[1759263924132,0.001,4170.2,4170.1,25.85164738]
[1759263924337,0.001,4170.2,4170.1,26.64364738]
[1759263924707,0.001,4170.2,4170.1,20.76203038]
[1759263925232,0.001,4170.2,4170.1,23.99621538]
[1759263925808,0.001,4170.2,4170.1,12.58628538]
[1759263926213,0.001,4170.2,4170.1,10.01334938]
[1759263926541,0.001,4170.2,4170.1,12.78054238]
[1759263927160,0.001,4170.2,4170.1,36.99545038]
[1759263927319,0.001,4170.2,4170.1,37.20659338]
[1759263927520,0.001,4170.2,4170.1,35.94284138]
[1759263928341,0.001,4170.2,4170.1,38.38994738]
[1759263928555,0.001,4170.2,4170.1,21.48540938]
[1759263928846,0.001,4170.2,4170.1,19.85493838]
[1759263929217,0.001,4170.2,4170.1,26.49154738]
[1759263929537,0.001,4170.2,4170.1,22.40336538]
[1759263930145,0.001,4170.2,4170.1,10.12934938]
[1759263930517,0.001,4170.2,4170.1,26.68265738]
[1759263930716,0.001,4170.2,4170.1,22.47808438]
[1759263931232,0.001,4170.2,4170.1,26.71471038]
[1759263931614,0.001,4170.2,4170.1,21.27376938]
[1759263931815,0.001,4170.2,4170.1,20.29683438]
[1759263932345,0.001,4170.2,4170.1,24.34785838]
[1759263933358,0.001,4170.2,4170.1,24.43664338]
[1759263933742,0.001,4170.2,4170.1,24.19640538]
[1759263933971,0.001,4170.2,4170.1,17.99908038]
[1759263934141,0.001,4170.2,4170.1,15.92681538]
[1759263934351,0.001,4170.2,4170.1,11.39070038]
[1759263934533,0.001,4170.2,4170.1,15.28503538]
[1759263934734,0.001,4170.2,4170.1,15.53493538]
[1759263934954,0.001,4170.2,4170.1,15.99543538]
[1759263935468,0.001,4170.2,4170.1,39.29503738]
[1759263936349,0.001,4170.2,4170.1,29.79830338]
[1759263936552,0.001,4170.2,4170.1,29.44608138]
[1759263936746,0.001,4170.2,4170.1,28.91181538]
[1759263937463,0.001,4170.2,4170.1,34.11487538]
[1759263938041,0.001,4170.2,4170.1,32.79359238]
[1759263938240,0.001,4170.2,4170.1,11.80902238]
[1759263938470,0.001,4170.2,4170.1,15.11579638]
[1759263938764,0.001,4170.2,4170.1,13.56100138]
[1759263938969,0.001,4170.2,4170.1,13.27917838]
[1759263939138,0.001,4170.2,4170.1,12.11277938]
[1759263939334,0.001,4170.2,4170.1,9.42524938]
[1759263939956,0.6715,4170.2,4170.1,3.46122536]
[1759263940147,0.6715,4170.2,4170.1,5.388]
[1759263940343,0.6715,4170.2,4170.1,5.269]
[1759263940544,0.6715,4170.2,4169.7,2.39820922]
[1759263940749,0.6705,4170.1,4169.8,5.269]
[1759263941060,0.4337,4170.1,4169.9,0.76672963]
[1759263941258,0.6666,4170.0,4169.9,0.76672963]
[1759263941469,0.6666,4170.0,4169.9,5.269]
[1759263942049,3.06469701,4170.0,4169.9,5.268]
[1759263942254,0.6666,4170.0,4169.9,5.268]
[1759263944171,3.06468153,4170.0,4169.9,5.268]
[1759263944382,0.6666,4170.0,4169.9,5.268]
[1759263944561,3.06468153,4170.0,4169.9,5.268]
[1759263944773,3.06468153,4170.0,4169.0,0.48227417]
[1759263944774,0.6666,4170.0,4169.0,0.48227417]
[1759263944972,0.4351,4170.0,4169.0,0.48227417]
[1759263945178,0.4351,4170.0,4169.1,5.27]
[1759263945377,2.39824587,4169.8,4169.2,2.777]
[1759263945574,0.2315,4169.7,4169.2,3.54386496]
[1759263945757,2.39837783,4169.5,4169.2,3.54386496]
[1759263946074,0.6666,4169.4,4169.2,3.54386496]
[1759263946275,0.6666,4169.4,4169.2,2.777]
[1759263946276,3.06504496,4169.4,4169.2,2.777]
[1759263946452,2.39837748,4169.5,4169.2,2.777]
[1759263946659,0.6666,4169.3,4169.2,2.777]
[1759263946975,2.39865684,4169.0,4168.3,0.794]
[1759263947174,2.39848415,4169.3,4169.2,2.493]
[1759263947374,2.39848415,4169.3,4169.2,5.27]
[1759263947743,2.39848415,4169.3,4168.3,0.002]
[1759263947744,2.39894446,4168.5,4168.3,0.002]
[1759263947944,0.6666,4169.3,4168.3,0.002]
[1759263947945,2.39870439,4169.0,4168.4,3.725]
[1759263948145,2.63025353,4168.9,4168.5,0.02398944]
[1759263948476,0.6666,4168.9,4168.6,2.777]
[1759263948680,2.39763141,4170.8,4168.6,2.777]
[1759263948681,2.39854393,4169.2,4168.6,2.777]
[1759263948979,0.2315,4168.8,4168.6,2.777]
[1759263949175,0.2315,4168.8,4168.7,0.02398829]
[1759263949351,0.2315,4168.8,4168.6,2.777]
[1759263949948,0.2315,4168.8,4168.3,0.002]
[1759263949949,0.26301597,4168.8,4168.3,0.002]
[1759263950148,0.792,4170.0,4168.3,0.002]
[1759263950149,0.6666,4168.7,4168.4,5.27]
[1759263950482,3.06552635,4168.6,4168.5,0.12]
[1759263951584,2.39900201,4168.4,4168.3,0.002]
[1759263951782,2.39900201,4168.4,4168.3,5.403]
[1759263952081,3.06560201,4168.4,4168.3,5.403]
[1759263953078,0.6666,4168.4,4168.3,5.402]
[1759263953478,0.6666,4168.4,4168.3,0.122]
[1759263953693,0.6666,4168.4,4168.3,5.282]
[1759263953694,3.06560201,4168.4,4168.3,5.282]
[1759263954283,2.63050201,4168.4,4168.3,5.282]
[1759263954489,3.06560201,4168.4,4168.3,5.282]
[1759263954779,3.06560201,4168.4,4168.3,5.29]
[1759263956477,3.06560201,4168.4,4168.3,0.002]
[1759263957085,3.06560201,4168.4,4168.3,5.29]
[1759263958360,0.6666,4168.4,4168.3,5.29]
[1759263958687,3.06560201,4168.4,4168.3,5.29]
[1759263959355,3.06560201,4168.4,4168.3,5.289]
[1759263959555,3.06560201,4168.4,4168.3,5.288]
[1759263960154,3.06560201,4168.4,4168.3,0.002]
[1759263960382,3.06560201,4168.4,4168.3,5.287]
[1759263961888,3.06560201,4168.4,4168.3,0.002]
[1759263962078,5.46560201,4168.4,4168.3,4.882]
[1759263962387,5.46660201,4168.4,4168.3,2.792]
[1759263963672,5.58660201,4168.4,4168.3,2.792]
[1759263965003,5.58660201,4168.4,4168.3,0.002]
[1759263965171,5.58660201,4168.4,4168.3,0.137]
[1759263965974,5.58660201,4168.4,4168.3,0.002]
[1759263966176,5.58660201,4168.4,4168.3,2.792]
[1759263966707,5.58660201,4168.4,4168.3,2.791]
[1759263967203,5.58660201,4168.4,4167.9,0.002]
[1759263967204,4.79923224,4168.0,4167.9,0.002]
[1759263967501,4.91923224,4168.0,4167.9,0.002]
[1759263967715,5.58583224,4168.0,4167.9,0.002]
[1759263967924,6.37783224,4168.0,4167.9,0.002]
[1759263968278,6.37783224,4168.0,4167.9,0.49]
[1759263968532,2.39952009,4167.5,4167.4,2.494]
[1759263968880,5.58612009,4167.5,4167.4,2.494]
[1759263969577,5.58612009,4167.5,4167.4,5.283]
[1759263971928,5.15102009,4167.5,4167.4,5.283]
[1759263972309,5.60662009,4167.5,4167.4,5.283]
[1759263973997,2.39957767,4167.4,4166.6,0.002]
[1759263974198,2.5199232,4166.8,4166.7,5.281]
[1759263974480,2.5199232,4166.8,4166.7,5.9347]
[1759263975700,2.5199232,4166.8,4166.7,5.5062]
[1759263975902,2.3999808,4166.7,4166.6,0.002]
[1759263976243,2.3999808,4166.7,4166.6,5.5072]
[1759263976929,2.3999808,4166.7,4166.6,5.9357]
[1759263977097,0.12,4166.8,4166.6,5.9357]
[1759263977299,2.51997306,4166.8,4166.7,0.6537]
[1759263977700,2.51997306,4166.8,4166.7,5.9337]
[1759263977898,0.12,4166.8,4166.7,5.9327]
[1759263978105,0.12,4167.3,4166.7,6.64617]
[1759263978331,2.39981447,4167.0,4166.8,0.7034]
[1759263978634,2.39981447,4167.0,4166.9,0.7034]
[1759263979243,0.12,4167.3,4166.9,0.7034]
[1759263979468,0.12,4167.3,4167.0,3.4874]
[1759263979648,0.12,4167.3,4167.1,0.7034]
[1759263979649,2.39969977,4167.2,4167.1,0.7034]
[1759263980269,2.3993938,4167.8,4167.1,0.7034]
[1759263980270,0.001,4168.4,4167.1,1.05453992]
[1759263980565,2.39941633,4167.7,4167.2,0.7034]
[1759263980740,2.39951927,4167.6,4167.3,3.4874]
[1759263980944,2.39951927,4167.6,4167.4,0.7034]
[1759263981144,2.39952009,4167.5,4167.4,0.7034]
[1759263981341,2.39952009,4167.5,4167.1,0.35113992]
[1759263981342,2.39964121,4167.3,4167.2,0.7034]
[1759263981648,2.39964121,4167.3,4167.2,5.278]
[1759263982058,2.39963525,4167.3,4167.2,5.278]
[1759263982258,2.39917468,4168.1,4167.2,5.9814]
[1759263982462,2.39963525,4167.3,4167.2,5.9814]
[1759263983969,2.4,4168.0,4167.2,5.9814]
[1759263984165,2.39956039,4167.5,4167.3,0.7034]
[1759263984370,2.39940607,4167.7,4167.4,0.7034]
[1759263984539,2.39946252,4167.6,4167.5,3.4864]
[1759263984938,2.39946252,4167.6,4167.5,2.783]
[1759263986169,2.39946252,4167.6,4167.5,3.0227]
[1759263986373,2.39946252,4167.6,4167.5,2.783]
[1759263986676,2.39946252,4167.6,4166.8,0.2417]
[1759263986677,2.39981337,4167.0,4166.8,0.2417]
[1759263986878,2.39981337,4167.0,4166.9,5.9814]
[1759263987052,0.2385,4167.6,4166.8,0.002]
[1759263987257,2.39980801,4167.0,4166.9,5.276]
[1759263987451,2.39981605,4167.0,4166.9,5.5157]
[1759263987656,2.39980801,4167.0,4166.9,5.5157]
[1759263988055,2.39980801,4167.0,4166.9,5.9794]
[1759263989279,2.3998656,4166.9,4166.8,0.002]
[1759263989512,2.3998656,4166.9,4166.8,5.277]
[1759263990159,2.3998656,4166.9,4166.8,0.002]
[1759263990359,2.5198656,4166.9,4166.8,5.277]
[1759263990560,2.5198656,4166.9,4166.8,5.5167]
[1759263990963,2.3998656,4166.9,4166.8,5.9804]
[1759263992864,2.3998656,4166.9,4166.8,5.5167]
[1759263993061,2.3998656,4166.9,4166.8,5.277]
[1759263993297,2.6383656,4166.9,4166.8,5.277]
[1759263993896,2.5383656,4166.9,4166.8,5.277]
[1759263994296,2.9765656,4166.9,4166.8,0.002]
[1759263994476,3.0965656,4166.9,4166.8,2.497]
[1759263994672,3.0965656,4166.9,4166.8,5.276]
[1759263995301,3.0965656,4166.9,4166.8,2.781]
[1759263995504,5.4965656,4166.9,4166.8,0.002]
[1759263995806,2.3999808,4166.7,4166.6,2.497]
[1759263995998,5.4766808,4166.7,4166.6,2.497]
[1759263996200,5.4766808,4166.7,4166.6,0.002]
[1759263996784,5.4766808,4166.7,4166.6,2.781]
[1759264000851,5.4766808,4166.7,4166.6,2.778]
[1759264001009,5.4766808,4166.7,4166.3,0.002]
[1759264001010,2.400096,4166.5,4166.3,0.002]
[1759264001341,4.9201536,4166.4,4166.3,0.002]
[1759264001638,5.5937536,4166.4,4166.3,0.002]
[1759264002301,5.5937536,4166.4,4166.3,2.778]
[1759264002501,5.5937536,4166.4,4166.3,0.002]
[1759264002708,5.5937536,4166.4,4166.3,0.579]
[1759264005142,5.1492536,4166.4,4166.3,0.579]
[1759264005541,5.5937536,4166.4,4166.3,0.579]
[1759264008209,5.1492536,4166.4,4166.3,0.579]
[1759264008413,5.5937536,4166.4,4166.3,0.579]
[1759264009111,4.9201536,4166.4,4166.3,0.579]
[1759264010254,5.1492536,4166.4,4166.3,0.579]
[1759264012356,4.9201536,4166.4,4166.3,0.579]
[1759264012560,5.5937536,4166.4,4166.3,0.579]
[1759264012724,5.5937536,4166.4,4166.3,0.002]
[1759264012928,4.80021121,4166.3,4166.2,0.002]
[1759264013567,5.47381121,4166.3,4166.2,0.002]
[1759264014148,5.47381121,4166.3,4166.2,2.772]
[1759264016140,4.80026883,4166.2,4166.1,1e-08]
[1759264016470,5.02936883,4166.2,4166.1,5.26500001]
[1759264016850,5.47386883,4166.2,4166.1,5.26500001]
[1759264017050,2.4004993,4165.8,4165.4,0.471]
[1759264017453,2.4004993,4165.8,4165.7,2.498]
[1759264017454,5.5940993,4165.8,4165.7,2.498]
[1759264017664,4.9204993,4165.8,4165.7,2.498]
[1759264018248,4.9204993,4165.8,4165.7,5.267]
[1759264020780,4.9204993,4165.8,4165.7,0.002]
[1759264021079,4.9204993,4165.8,4165.7,5.267]
[1759264022478,4.9204993,4165.8,4165.7,0.002]
[1759264022681,4.9204993,4165.8,4165.7,5.266]
[1759264025183,4.9204993,4165.8,4165.7,5.9719]
[1759264026052,0.12,4165.8,4165.7,6.33419]
[1759264026255,2.40042403,4166.0,4165.7,6.56909]
[1759264026555,2.40042403,4166.0,4165.8,0.02400499]
[1759264026756,2.40042403,4166.0,4165.8,0.72990499]
[1759264026961,2.40042403,4166.0,4165.9,0.7059]
[1759264028985,0.001,4166.4,4165.9,1.3772095]
[1759264028986,0.121,4166.4,4165.9,1.3772095]
[1759264029291,0.121,4166.4,4166.0,3.4729]
[1759264029292,2.40037887,4166.1,4166.0,3.4729]
[1759264033481,0.001,4166.4,4166.0,3.4729]
[1759264033692,2.40121114,4166.4,4166.1,1.0276905]
[1759264033862,2.40121114,4166.4,4166.2,3.55]
[1759264034062,0.001,4166.4,4166.3,0.666]
[1759264034403,2.4011536,4166.4,4166.3,0.666]
[1759264037094,0.001,4166.4,4166.3,0.666]
[1759264037705,2.4011536,4166.4,4166.3,0.666]
[1759264039896,0.2437,4166.4,4165.9,0.2314]
[1759264040098,2.40038406,4166.0,4165.8,0.002]
[1759264040411,2.40038406,4166.0,4165.9,5.258]
[1759264040609,2.40044168,4165.9,4165.8,0.002]
[1759264040810,3.22534168,4165.9,4165.8,5.26]
[1759264041609,3.22534168,4165.9,4165.8,0.002]
[1759264041817,3.22534168,4165.9,4165.8,5.26]
[1759264042389,3.22534168,4165.9,4165.7,0.002]
[1759264042390,2.4004993,4165.8,4165.7,0.002]
[1759264042893,3.1053993,4165.8,4165.7,0.002]
[1759264043622,5.5053993,4165.8,4165.7,0.002]
[1759264043829,2.40067218,4165.5,4165.4,0.002]
[1759264044019,2.52067218,4165.5,4165.4,0.002]
[1759264044206,3.22557218,4165.5,4165.4,0.002]
[1759264044911,3.22557218,4165.5,4165.4,2.764]
[1759264045309,3.22557218,4165.5,4165.4,0.002]
[1759264045545,3.22557218,4165.5,4165.4,2.764]
[1759264047790,2.52067218,4165.5,4165.4,2.764]
[1759264048724,2.76337218,4165.5,4165.4,2.764]
[1759264049026,3.22557218,4165.5,4165.4,2.764]
[1759264049224,2.76337218,4165.5,4165.4,2.764]
[1759264050117,3.22557218,4165.5,4165.4,5.26]
[1759264051043,3.22557218,4165.5,4165.4,2.764]
[1759264052816,3.22557218,4165.5,4165.4,0.002]
[1759264053016,3.22557218,4165.5,4165.4,2.764]
[1759264054944,3.22557218,4165.5,4165.4,0.002]
[1759264055249,3.22557218,4165.5,4165.4,2.764]
[1759264056159,2.52067218,4165.5,4165.4,2.764]
[1759264056363,2.52067218,4165.5,4165.4,3.4525]
[1759264056830,2.52067218,4165.5,4165.4,2.764]
[1759264063761,2.52067218,4165.5,4165.4,3.4451]
[1759264065235,2.52067218,4165.5,4165.4,3.0102]
[1759264065435,2.52067218,4165.5,4165.4,2.764]
[1759264065644,2.52067218,4165.5,4165.4,3.4451]
[1759264067644,2.52067218,4165.5,4165.4,2.764]
[1759264067974,2.52067218,4165.5,4165.4,3.0102]
[1759264068270,2.52067218,4165.5,4165.4,3.4451]
[1759264070977,2.52067218,4165.5,4165.4,2.764]
[1759264071576,3.22357218,4165.5,4165.4,0.002]
[1759264071781,3.22357218,4165.5,4165.4,5.26]
[1759264072215,2.76777218,4165.5,4165.4,5.26]
[1759264075998,2.52067218,4165.5,4165.4,5.26]
[1759264077230,2.76777218,4165.5,4165.4,5.26]
[1759264077819,3.22357218,4165.5,4165.4,5.26]
[1759264078123,2.76777218,4165.5,4165.4,5.26]
[1759264078327,3.22357218,4165.5,4165.4,5.26]
[1759264079025,2.76777218,4165.5,4165.4,5.26]
[1759264079224,2.52067218,4165.5,4165.4,5.26]
[1759264079930,2.76777218,4165.5,4165.4,5.26]
[1759264080893,2.76777218,4165.5,4165.4,0.002]
[1759264081095,3.22357218,4165.5,4165.4,5.259]
[1759264083038,2.76777218,4165.5,4165.4,5.259]
[1759264083325,2.76777218,4165.5,4165.4,0.002]
[1759264083547,3.22357218,4165.5,4165.4,5.259]
[1759264083751,2.76777218,4165.5,4165.4,5.259]
[1759264086044,2.76777218,4165.5,4165.4,7.659]
[1759264095444,2.40067218,4165.5,4165.4,2.642]
[1759264095682,0.12,4165.5,4165.4,4.07740257]
[1759264095857,2.52067218,4165.5,4165.4,4.07740257]
[1759264099668,2.52067218,4165.5,4165.4,2.402]
[1759264099849,2.52067218,4165.5,4165.4,2.642]
[1759264100050,2.76527218,4165.5,4165.4,2.402]
[1759264100262,3.23957218,4165.5,4165.4,2.402]
[1759264104375,3.23957218,4165.5,4165.4,2.642]
[1759264105469,2.76527218,4165.5,4165.4,2.642]
[1759264105677,2.52067218,4165.5,4165.4,2.642]
[1759264106207,2.52067218,4165.5,4165.4,3.3457]
[1759264106513,2.52067218,4165.5,4165.4,2.402]
[1759264106717,2.52067218,4165.5,4165.4,7.87904336]
[1759264113478,2.52067218,4165.5,4165.4,8.12234336]
[1759264114615,2.52067218,4165.5,4165.4,8.11904336]
[1759264116894,2.52067218,4165.5,4165.4,7.87904336]
[1759264116895,3.23957218,4165.5,4165.4,7.87904336]
[1759264117315,2.40072982,4165.4,4165.3,0.002]
[1759264117917,3.11962982,4165.4,4165.3,0.002]
[1759264118080,3.91162982,4165.4,4165.3,0.002]
[1759264118804,3.91162982,4165.4,4164.6,0.002]
[1759264118805,2.40113333,4164.7,4164.6,0.002]
[1759264119193,3.24003333,4164.7,4164.6,0.002]
[1759264119518,2.40119099,4164.6,4164.5,1e-08]
[1759264119918,3.12009099,4164.6,4164.5,1e-08]
[1759264120723,3.91209099,4164.6,4164.5,1e-08]
[1759264121017,4.0082431,4164.6,4164.5,1e-08]
[1759264121420,2.40194076,4163.3,4163.1,6.34316833]
[1759264121625,2.40199846,4163.2,4163.1,6.34316833]
[1759264121790,2.40205616,4163.1,4163.0,6.34316833]
[1759264122123,2.40205616,4163.1,4163.0,9.42886833]
[1759264123004,2.40205616,4163.1,4163.0,9.91568135]
[1759264123929,2.40205616,4163.1,4163.0,9.22998135]
[1759264124229,2.40205616,4163.1,4163.0,9.46248135]
[1759264124422,2.40205616,4163.1,4163.0,9.91568135]
[1759264125331,2.40205616,4163.1,4163.0,9.46248135]
[1759264125621,2.40205616,4163.1,4163.0,9.22998135]
[1759264126136,2.40205616,4163.1,4163.0,3.46337959]
[1759264128333,2.4010368,4164.9,4163.0,4.87521945]
[1759264128534,2.40194355,4163.3,4163.1,1.40400257]
[1759264128753,2.40194355,4163.3,4163.1,0.71830257]
[1759264128961,2.40194355,4163.3,4163.2,0.6857]
[1759264129154,2.40194355,4163.3,4163.2,1.06337959]
[1759264129856,2.40194355,4163.3,4163.2,9.80654792]
[1759264132375,2.40194355,4163.3,4163.2,9.35334792]
[1759264132557,2.40194355,4163.3,4163.2,9.12084792]
[1759264132774,2.40194355,4163.3,4163.2,8.74316833]
[1759264133833,2.40194355,4163.3,4163.2,9.21566833]
[1759264134241,2.40194355,4163.3,4163.2,9.66886833]
[1759264134871,2.40194355,4163.3,4163.2,10.3871709]
[1759264137960,2.40194355,4163.3,4163.2,10.04654792]
[1759264138280,2.40194355,4163.3,4163.2,9.36084792]
[1759264138482,2.40194355,4163.3,4163.2,10.04654792]
[1759264139082,2.40194355,4163.3,4163.2,9.36084792]
[1759264139472,2.40194355,4163.3,4163.2,10.04654792]
[1759264140664,2.40194355,4163.3,4163.2,9.59334792]
[1759264140865,2.40194355,4163.3,4163.2,10.04654792]
[1759264142098,0.12,4163.4,4163.3,2.64]
[1759264142397,2.52173027,4163.7,4163.3,1.30337959]
[1759264142602,2.52173027,4163.7,4163.4,0.6857]
[1759264142603,2.40186894,4163.5,4163.4,0.6857]
[1759264143081,2.40178575,4163.6,4163.4,0.6857]
[1759264143292,0.12,4163.7,4163.5,0.6857]
[1759264143599,0.12,4163.7,4163.5,7.40654792]
[1759264143750,2.5217119,4163.7,4163.5,6.72084792]
[1759264143949,2.5217119,4163.7,4163.6,0.6857]
[1759264144171,0.12,4163.7,4163.6,1.06337959]
[1759264144380,2.52171001,4163.7,4163.6,1.06337959]
[1759264144553,2.52171001,4163.7,4163.6,3.46337959]
[1759264144886,2.52171001,4163.7,4163.6,3.818887]
[1759264145190,0.12,4163.7,4163.6,3.818887]
[1759264145487,2.52171001,4163.7,4163.6,3.818887]
[1759264145665,0.12,4163.7,4163.6,3.818887]
[1759264145850,2.52171001,4163.7,4163.6,3.818887]
[1759264146251,0.12,4163.7,4163.6,3.818887]
[1759264146502,2.40161158,4163.9,4163.6,4.42352765]
[1759264146662,2.40255474,4164.0,4163.8,0.24]
[1759264146862,2.40159465,4163.9,4163.8,0.24]
[1759264147494,0.001,4164.0,4163.3,0.72098139]
[1759264147658,2.40199542,4163.3,4163.0,0.48107231]
[1759264147860,2.40199846,4163.2,4163.0,0.48107231]
[1759264148160,2.40199846,4163.2,4163.1,8.74516833]
[1759264148470,2.40199846,4163.2,4163.1,8.98516833]
[1759264149669,2.40196083,4163.3,4163.2,2.64]
[1759264150056,2.65106083,4163.3,4163.2,0.24]
[1759264150267,2.40199846,4163.2,4163.1,0.002]
[1759264150487,2.77109846,4163.2,4163.1,8.98516833]
[1759264150691,2.52199846,4163.2,4163.1,8.98516833]
[1759264151270,2.52199846,4163.2,4163.1,8.74516833]
[1759264151682,0.12,4163.2,4163.1,9.42176833]
[1759264152002,2.52199846,4163.2,4163.1,8.74516833]
[1759264152370,2.52199846,4163.2,4163.1,8.98516833]
[1759264152798,2.76929846,4163.2,4163.1,8.98516833]
[1759264153302,2.52199846,4163.2,4163.1,8.74516833]
[1759264153511,2.52199846,4163.2,4163.1,8.98516833]
[1759264153804,2.52199846,4163.2,4163.1,8.74516833]
[1759264154483,2.52199846,4163.2,4163.1,8.98516833]
[1759264154889,0.12,4163.2,4163.1,8.98516833]
[1759264155427,2.52199846,4163.2,4163.1,8.98516833]
[1759264158101,0.12,4163.2,4163.1,8.98516833]
[1759264158301,0.12,4163.2,4163.1,11.31979496]
[1759264158631,0.2481,4163.9,4163.2,3.01767959]
[1759264158632,2.16198188,4163.3,4163.2,3.01767959]
[1759264158794,2.52182538,4163.5,4163.4,0.24]
[1759264159408,2.40188307,4163.4,4163.3,2.4]
[1759264159599,2.87528307,4163.4,4163.3,2.4]
[1759264159784,3.12338307,4163.4,4163.3,2.4]
[1759264160113,3.12338307,4163.4,4163.3,2.64]
[1759264161225,2.64998307,4163.4,4163.3,2.64]
[1759264161425,2.40188307,4163.4,4163.3,2.64]
[1759264163490,2.40188307,4163.4,4163.3,2.642]
[1759264163934,2.52182538,4163.5,4163.3,2.642]
[1759264163935,0.12,4163.5,4163.3,2.642]
[1759264164093,2.40187969,4163.5,4163.4,0.4723]
[1759264164417,2.40187969,4163.5,4163.4,0.24]
[1759264165236,0.2491,4163.9,4163.4,0.24]
[1759264165531,2.40171001,4163.7,4163.6,6.34316833]
[1759264166293,0.001,4163.9,4163.7,2.4]
[1759264166527,0.001,4163.9,4163.8,0.9097]
[1759264166693,0.001,4163.9,4163.8,1.28737959]
[1759264167902,0.001,4163.9,4163.8,0.61767959]
[1759264169029,0.001,4163.9,4163.8,0.84997959]
[1759264169397,0.001,4163.9,4163.8,1.28737959]
[1759264169601,0.001,4163.9,4163.8,5.16542514]
[1759264169814,0.001,4164.5,4164.0,0.24]
[1759264170000,0.001,4164.5,4164.4,8.74316833]
[1759264170207,0.001,4164.5,4164.4,9.12084792]
[1759264170446,2.40224864,4164.5,4164.4,9.12084792]
[1759264170816,0.001,4164.5,4164.4,9.12084792]
[1759264171016,2.40224864,4164.5,4164.4,9.12084792]
[1759264171211,0.001,4164.5,4164.4,9.12084792]
[1759264172640,0.001,4164.5,4164.4,9.35314792]
[1759264173227,0.001,4164.5,4164.4,10.93376246]
[1759264174138,0.001,4164.5,4164.4,11.17376246]
[1759264175654,0.001,4164.5,4164.4,11.51438544]
[1759264176031,0.001,4164.5,4164.4,11.07698544]
[1759264176548,0.12,4164.7,4164.5,2.4]
[1759264176719,0.12,4164.7,4164.5,3.44737959]
[1759264177247,0.001,4164.9,4164.6,0.60463488]
[1759264177425,0.001,4164.9,4164.8,8.98316833]
[1759264177626,0.001,4164.9,4164.8,9.7014709]
[1759264177831,2.40080827,4165.3,4164.8,11.6484056]
[1759264178027,2.40080827,4165.3,4165.2,8.98316833]
[1759264178229,2.64890827,4165.3,4165.2,8.98316833]
[1759264178454,2.64890827,4165.3,4165.2,8.74316833]
[1759264179020,3.12230827,4165.3,4165.2,8.74316833]
[1759264179448,3.12230827,4165.3,4165.2,8.98316833]
[1759264179849,3.12230827,4165.3,4165.2,8.74316833]
[1759264180253,3.12230827,4165.3,4165.2,7.87680251]
[1759264180455,3.12230827,4165.3,4165.2,8.36143753]
[1759264180662,3.12230827,4165.3,4165.2,8.60143753]
[1759264181151,2.40080827,4165.3,4165.2,8.60143753]
[1759264181527,2.65020827,4165.3,4165.2,8.60143753]
[1759264182757,2.65120827,4165.3,4165.2,8.60143753]
[1759264183345,2.65120827,4165.3,4165.2,8.36143753]
[1759264183346,3.10280827,4165.3,4165.2,8.36143753]
[1759264185049,3.10280827,4165.3,4165.2,2.88463502]
[1759264185261,3.10280827,4165.3,4165.2,8.14263502]
[1759264186342,3.10280827,4165.3,4165.2,2.88463502]
[1759264186745,3.10280827,4165.3,4165.2,5.63963502]
[1759264188435,2.65120827,4165.3,4165.2,5.63963502]
[1759264188649,2.65120827,4165.3,4165.2,5.87963502]
[1759264188650,0.001,4165.3,4165.2,5.87963502]
[1759264188841,2.40178745,4165.3,4165.2,6.26731461]
[1759264189059,2.40178745,4165.3,4165.2,6.01731461]
[1759264189377,2.40178745,4165.3,4165.2,5.63963502]
[1759264189378,2.65118745,4165.3,4165.2,5.63963502]
[1759264191469,2.40178745,4165.3,4165.2,5.87963502]
[1759264192962,2.40178745,4165.3,4165.2,5.63963502]
[1759264194279,2.65118745,4165.3,4165.2,5.63963502]
[1759264195546,2.40178745,4165.3,4165.2,5.63963502]
[1759264197589,2.40178745,4165.3,4165.2,6.34683502]
[1759264198474,2.40178745,4165.3,4165.2,5.405]
[1759264198650,2.52178745,4165.3,4165.2,5.155]
[1759264200286,0.001,4165.7,4165.3,2.4]
[1759264200482,2.40067218,4165.5,4165.4,5.154]
[1759264200684,2.40067218,4165.5,4165.4,5.8612]
[1759264200980,2.77007218,4165.5,4165.4,7.651]
[1759264201190,3.22167218,4165.5,4165.4,7.651]
[1759264201482,2.40061455,4165.6,4165.5,2.6403]
[1759264201685,2.40061455,4165.6,4165.5,8.72110251]
[1759264201875,2.52061455,4165.6,4165.5,11.57830251]
[1759264202182,2.52061455,4165.6,4165.5,11.12110251]
[1759264202356,2.52061455,4165.6,4165.5,10.63080251]
[1759264202854,3.22161455,4165.6,4165.5,13.12780251]
[1759264203782,2.77001455,4165.6,4165.5,13.12780251]
[1759264203991,3.22161455,4165.6,4165.5,2.4]
[1759264204164,2.40090273,4165.1,4165.0,2.496]
[1759264204371,3.10190273,4165.1,4165.0,7.649]
[1759264204565,0.12,4165.1,4165.0,7.649]
[1759264204769,0.12,4165.1,4165.0,13.83300251]
[1759264205091,2.52090273,4165.1,4165.0,13.83300251]
[1759264205256,2.52090273,4165.1,4165.0,7.649]
[1759264205678,2.52090273,4165.1,4165.0,7.899]
[1759264205890,2.52090273,4165.1,4165.0,7.649]